fUSD/lending_fUSD_20240921
["ID","MTS","AMOUNT","RATE_DAILY","PERIOD"]
[338729789,1726901436786,-500.0,0.00012887,2]
[338729790,1726901436797,-500.0,0.00012887,2]
[338729791,1726901436806,-500.0,0.00012887,2]
[338729792,1726901436817,-500.0,0.00012887,2]
[338729793,1726901436827,-500.0,0.00012887,2]
[338729794,1726901436836,-500.0,0.00012887,2]
[338729795,1726901436846,-500.0,0.00012887,2]
[338729796,1726901436857,-500.0,0.00012887,2]
[338729797,1726901436870,-500.0,0.00012887,2]
[338729798,1726901436880,-500.0,0.00012887,2]
[338729799,1726901436890,-500.0,0.00012887,2]
[338729800,1726901436900,-500.0,0.00012887,2]
[338729801,1726901436910,-500.0,0.00012887,2]
[338729802,1726901436920,-500.0,0.00012887,2]
[338729803,1726901436931,-500.0,0.00012887,2]
[338729804,1726901436942,-500.0,0.00012887,2]
[338729805,1726901436953,-500.0,0.00012887,2]
[338729806,1726901436964,-500.0,0.00012887,2]
[338729807,1726901437268,-500.0,0.00012887,2]
[338729808,1726901437281,-500.0,0.00012887,2]
[338729809,1726901437293,-912.92,0.00012887,2]
[338729810,1726901437307,-500.0,0.00012887,2]
[338729811,1726901437317,-500.0,0.00012887,2]
[338729812,1726901437327,-500.0,0.00012887,2]
[338729813,1726901437337,-500.0,0.00012887,2]
[338729815,1726901437346,-537.18,0.00012887,2]
[338729816,1726901437356,-500.0,0.00012887,2]
[338729817,1726901437365,-552.27,0.00012887,2]
[338729818,1726901437374,-500.0,0.00012887,2]
[338729819,1726901437384,-500.0,0.00012887,2]
[338729820,1726901437393,-500.0,0.00012887,2]
[338729821,1726901437403,-500.0,0.00012887,2]
[338729822,1726901437412,-500.0,0.00012887,2]
[338729823,1726901437422,-500.0,0.00012887,2]
[338729824,1726901437431,-500.0,0.00012887,2]
[338729825,1726901437441,-500.0,0.00012887,2]
[338729826,1726901437451,-500.0,0.00012887,2]
[338729827,1726901437460,-500.0,0.00012887,2]
[338729828,1726901437469,-500.0,0.00012887,2]
[338729829,1726901437479,-500.0,0.00012887,2]
[338729830,1726901437488,-500.0,0.00012887,2]
[338729831,1726901437503,-500.0,0.00012887,2]
[338729832,1726901437512,-500.0,0.00012887,2]
[338729833,1726901437522,-500.0,0.00012887,2]
[338729834,1726901437531,-500.0,0.00012887,2]
[338729835,1726901437540,-500.0,0.00012887,2]
[338729836,1726901437549,-500.0,0.00012887,2]
[338729837,1726901437559,-500.0,0.00012887,2]
[338729838,1726901437568,-500.0,0.00012887,2]
[338729839,1726901437578,-500.0,0.00012887,2]
[338729840,1726901437588,-500.0,0.00012887,2]
[338729841,1726901437597,-500.0,0.00012887,2]
[338729842,1726901437608,-500.0,0.00012887,2]
[338729843,1726901437618,-500.0,0.00012887,2]
[338729844,1726901437628,-500.0,0.00012887,2]
[338729845,1726901437638,-500.0,0.00012887,2]
[338729846,1726901437647,-500.0,0.00012887,2]
[338729847,1726901437657,-500.0,0.00012887,2]
[338729848,1726901437666,-500.0,0.00012887,2]
[338729849,1726901437675,-500.0,0.00012887,2]
[338729850,1726901437685,-500.0,0.00012887,2]
[338729851,1726901437695,-614.16,0.00012887,2]
[338729852,1726901437706,-500.0,0.00012887,2]
[338729853,1726901437716,-500.0,0.00012887,2]
[338729854,1726901437726,-500.0,0.00012887,2]
[338729855,1726901437735,-500.0,0.00012887,2]
[338729856,1726901437747,-640.71,0.00012887,2]
[338729857,1726901437757,-500.0,0.00012887,2]
[338729858,1726901437767,-500.0,0.00012887,2]
[338729859,1726901437777,-500.0,0.00012887,2]
[338729860,1726901437786,-500.0,0.00012887,2]
[338729861,1726901437796,-500.0,0.00012887,2]
[338729862,1726901437805,-500.0,0.00012887,2]
[338729863,1726901437815,-500.0,0.00012887,2]
[338729864,1726901437825,-525.48,0.00012887,2]
[338729865,1726901437835,-634.11,0.00012887,2]
[338729866,1726901437846,-500.0,0.00012887,2]
[338729867,1726901437855,-500.0,0.00012887,2]
[338729868,1726901437866,-500.0,0.00012887,2]
[338729869,1726901437876,-525.06,0.00012887,2]
[338729870,1726901437886,-500.0,0.00012887,2]
[338729871,1726901437896,-500.0,0.00012887,2]
[338729872,1726901437906,-500.0,0.00012887,2]
[338729873,1726901437916,-500.0,0.00012887,2]
[338729874,1726901437926,-500.0,0.00012887,2]
[338729875,1726901437936,-500.0,0.00012887,2]
[338729876,1726901437947,-500.0,0.00012887,2]
[338729877,1726901437958,-500.0,0.00012887,2]
[338729878,1726901437967,-500.0,0.00012887,2]
[338729879,1726901437976,-500.0,0.00012887,2]
[338729880,1726901437986,-500.0,0.00012887,2]
[338729881,1726901437998,-627.34,0.00012887,2]
[338729882,1726901438008,-500.0,0.00012887,2]
[338729883,1726901438018,-500.0,0.00012887,2]
[338729884,1726901438027,-500.0,0.00012887,2]
[338729885,1726901438037,-500.0,0.00012887,2]
[338729886,1726901438047,-500.0,0.00012887,2]
[338729887,1726901438057,-500.0,0.00012887,2]
[338729888,1726901438066,-500.0,0.00012887,2]
[338729889,1726901438076,-520.02,0.00012887,2]
[338729890,1726901438086,-500.0,0.00012887,2]
[338729891,1726901438095,-500.0,0.00012887,2]
[338729892,1726901438104,-537.24,0.00012887,2]
[338729893,1726901438114,-500.0,0.00012887,2]
[338729894,1726901438124,-500.0,0.00012887,2]
[338729895,1726901438134,-500.0,0.00012887,2]
[338729896,1726901438143,-500.0,0.00012887,2]
[338729897,1726901438154,-500.0,0.00012887,2]
[338729898,1726901438164,-500.0,0.00012887,2]
[338729899,1726901438173,-500.0,0.00012887,2]
[338729900,1726901438184,-500.0,0.00012887,2]
[338729901,1726901438194,-500.0,0.00012887,2]
[338729902,1726901438204,-500.0,0.00012887,2]
[338729903,1726901438214,-500.0,0.00012887,2]
[338729904,1726901438224,-500.0,0.00012887,2]
[338729905,1726901438234,-510.91,0.00012887,2]
[338729906,1726901438248,-500.0,0.00012887,2]
[338729907,1726901438257,-500.0,0.00012887,2]
[338729908,1726901438267,-500.0,0.00012887,2]
[338729909,1726901438277,-500.0,0.00012887,2]
[338729910,1726901438287,-500.0,0.00012887,2]
[338729911,1726901438296,-500.000001,0.00012887,2]
[338729912,1726901438306,-500.0,0.00012887,2]
[338729913,1726901438316,-500.0,0.00012887,2]
[338729914,1726901438327,-500.0,0.00012887,2]
[338729915,1726901438336,-500.0,0.00012887,2]
[338729916,1726901438345,-607.78,0.00012887,2]
[338729917,1726901438355,-500.0,0.00012887,2]
[338729918,1726901438365,-500.0,0.00012887,2]
[338729919,1726901438375,-500.0,0.00012887,2]
[338729920,1726901438384,-500.0,0.00012887,2]
[338729921,1726901438394,-500.0,0.00012887,2]
[338729922,1726901438403,-626.04,0.00012887,2]
[338729923,1726901438414,-500.0,0.00012887,2]
[338729924,1726901438423,-500.0,0.00012887,2]
[338729925,1726901438432,-500.0,0.00012887,2]
[338729926,1726901438441,-500.0,0.00012887,2]
[338729927,1726901438451,-500.0,0.00012887,2]
[338729928,1726901438461,-500.0,0.00012887,2]
[338729929,1726901438470,-629.35,0.00012887,2]
[338729930,1726901438480,-500.0,0.00012887,2]
[338729931,1726901438490,-500.0,0.00012887,2]
[338729932,1726901438500,-500.0,0.00012887,2]
[338729933,1726901438510,-500.0,0.00012887,2]
[338729934,1726901438519,-500.0,0.00012887,2]
[338729935,1726901438529,-632.14,0.00012887,2]
[338729936,1726901438538,-500.0,0.00012887,2]
[338729937,1726901438548,-500.0,0.00012887,2]
[338729938,1726901438557,-150.0,0.00012887,2]
[338729939,1726901438568,-500.0,0.00012887,2]
[338729940,1726901438578,-500.0,0.00012887,2]
[338729941,1726901438587,-500.0,0.00012887,2]
[338729942,1726901438596,-500.0,0.00012887,2]
[338729943,1726901438606,-500.0,0.00012887,2]
[338729944,1726901438615,-500.0,0.00012887,2]
[338729945,1726901438626,-500.0,0.00012887,2]
[338729946,1726901438635,-500.0,0.00012887,2]
[338729947,1726901438645,-500.0,0.00012887,2]
[338729948,1726901438655,-614.56,0.00012887,2]
[338729949,1726901438664,-500.0,0.00012887,2]
[338729950,1726901438674,-500.0,0.00012887,2]
[338729951,1726901438683,-500.0,0.00012887,2]
[338729952,1726901438693,-327.31635816,0.00012898,2]
[338729953,1726901438703,-339.7032,0.00012899,2]
[338729954,1726901438712,-24046.98246606,0.00012899,2]
[338729955,1726901438976,371.68,0.00010655,2]
[338729956,1726901439058,-1335.85121143,0.00012899,2]
[338729957,1726901439070,-1318.31872251,0.00012899,2]
[338729958,1726901439079,-758.02433177,0.00012899,2]
[338729959,1726901439091,-303.16003,0.00012899,2]
[338729960,1726901439103,-62.27283823,0.00012899,2]
[338729961,1726901439112,-252.72716177,0.00012899,2]
[338729962,1726901439124,-430.48305069,0.00012899,2]
[338729963,1726901439135,-673.85278754,0.00012899,2]
[338729964,1726901439144,-14327.8718,0.00012899,2]
[338729965,1726901439153,-4064.51880823,0.00012899,2]
[338729966,1726901439165,-482.423356,0.00012899,2]
[338729967,1726901439174,-158.56691586,0.00012899,2]
[338729968,1726901439184,-371.68,0.00012919,2]
[338729969,1726901439194,-240.03,0.00012956,2]
[338729970,1726901439204,-500.0,0.00012972,2]
[338729971,1726901439213,-500.0,0.00012972,2]
[338729972,1726901439223,-500.0,0.00012972,2]
[338729973,1726901439234,-253.53257512,0.00012972,2]
[338730034,1726901440516,-246.46742488,0.00012972,2]
[338730036,1726901440525,-500.0,0.00012972,2]
[338730038,1726901440536,-500.0,0.00012972,2]
[338730040,1726901440546,-502.38,0.00012972,2]
[338730041,1726901440555,-500.0,0.00012972,2]
[338730043,1726901440564,-500.0,0.00012972,2]
[338730045,1726901440573,-1179.6,0.00012972,2]
[338730047,1726901440582,-500.0,0.00012972,2]
[338730049,1726901440590,-500.0,0.00012972,2]
[338730051,1726901440599,-500.0,0.00012972,2]
[338730053,1726901440608,-500.0,0.00012972,2]
[338730054,1726901440617,-1873.29,0.00012972,2]
[338730056,1726901440625,-500.0,0.00012972,2]
[338730058,1726901440635,-1000.0,0.00012972,2]
[338730061,1726901440646,-500.0,0.00012972,2]
[338730063,1726901440656,-500.0,0.00012972,2]
[338730065,1726901440669,-500.0,0.00012972,2]
[338730067,1726901440679,-500.0,0.00012972,2]
[338730069,1726901440689,-500.0,0.00012972,2]
[338730071,1726901440698,-500.0,0.00012972,2]
[338730074,1726901440710,-378.9434587,0.00012972,2]
[338730076,1726901440722,-121.0565413,0.00012972,2]
[338730078,1726901440732,-500.0,0.00012972,2]
[338730080,1726901440742,-608.68,0.00012972,2]
[338730082,1726901440757,-500.0,0.00012972,2]
[338730084,1726901440767,-500.0,0.00012972,2]
[338730086,1726901440776,-500.0,0.00012972,2]
[338730088,1726901440786,-500.0,0.00012972,2]
[338730090,1726901440798,-500.0,0.00012972,2]
[338730092,1726901440807,-500.0,0.00012972,2]
[338730094,1726901440816,-569.04,0.00012972,2]
[338730096,1726901440825,-500.0,0.00012972,2]
[338730098,1726901440835,-500.0,0.00012972,2]
[338730100,1726901440844,-500.0,0.00012972,2]
[338730102,1726901440854,-500.0,0.00012972,2]
[338730104,1726901440864,-500.0,0.00012972,2]
[338730106,1726901440873,-500.0,0.00012972,2]
[338730108,1726901440883,-519.52,0.00012972,2]
[338730110,1726901440893,-500.0,0.00012972,2]
[338730112,1726901440902,-500.0,0.00012972,2]
[338730114,1726901440911,-500.0,0.00012972,2]
[338730116,1726901440919,-500.0,0.00012972,2]
[338730118,1726901440930,-500.0,0.00012972,2]
[338730120,1726901440939,-500.0,0.00012972,2]
[338730122,1726901440948,-500.0,0.00012972,2]
[338730124,1726901440958,-528.46,0.00012972,2]
[338730126,1726901440967,-500.0,0.00012972,2]
[338730128,1726901440976,-500.0,0.00012972,2]
[338730130,1726901440985,-500.0,0.00012972,2]
[338730132,1726901440995,-500.0,0.00012972,2]
[338730133,1726901441004,-500.0,0.00012972,2]
[338730135,1726901441013,-500.0,0.00012972,2]
[338730137,1726901441022,-500.0,0.00012972,2]
[338730139,1726901441031,-500.0,0.00012972,2]
[338730141,1726901441043,-500.0,0.00012972,2]
[338730143,1726901441052,-500.0,0.00012972,2]
[338730145,1726901441062,-500.0,0.00012972,2]
[338730147,1726901441072,-500.0,0.00012972,2]
[338730149,1726901441082,-500.0,0.00012972,2]
[338730151,1726901441093,-500.0,0.00012972,2]
[338730154,1726901441104,-500.0,0.00012972,2]
[338730156,1726901441115,-500.0,0.00012972,2]
[338730158,1726901441127,-500.0,0.00012972,2]
[338730160,1726901441138,-500.0,0.00012972,2]
[338730162,1726901441147,-500.0,0.00012973,2]
[338730164,1726901441156,-260.72961047,0.00012973,2]
[338730166,1726901441167,-239.27038953,0.00012973,2]
[338730168,1726901441176,-500.0,0.00012973,2]
[338730171,1726901441187,-625.13053005,0.00012998,2]
[338730173,1726901441197,-500.0,0.00012998,2]
[338730175,1726901441207,-294.74700359,0.00012998,2]
[338730178,1726901441224,-205.25299641,0.00012998,2]
[338730180,1726901441236,-500.0,0.00012998,2]
[338730182,1726901441247,-500.0,0.00012998,2]
[338730184,1726901441257,-158.0301385,0.00012998,2]
[338730186,1726901441270,-28.0298615,0.00012998,2]
[338730189,1726901441281,-614.06,0.00012998,2]
[338730191,1726901441292,-500.0,0.00012998,2]
[338730193,1726901441301,-272.86,0.00012998,2]
[338730195,1726901441310,-500.0,0.00012998,2]
[338730196,1726901441319,-500.0,0.00012998,2]
[338730198,1726901441328,-500.0,0.00012998,2]
[338730200,1726901441337,-500.0,0.00012998,2]
[338730202,1726901441347,-588.45,0.00012998,2]
[338730205,1726901441357,-500.0,0.00012998,2]
[338730207,1726901441367,-500.0,0.00012998,2]
[338730209,1726901441377,-500.0,0.00012998,2]
[338730211,1726901441387,-500.0,0.00012998,2]
[338730213,1726901441396,-610.52,0.00012998,2]
[338730215,1726901441406,-500.0,0.00012998,2]
[338730217,1726901441415,-429.18,0.00012998,2]
[338730219,1726901441425,-500.0,0.00012998,2]
[338730221,1726901441435,-500.0,0.00012998,2]
[338730223,1726901441444,-1873.29,0.00012998,2]
[338730225,1726901441453,-1873.29,0.00012998,2]
[338730227,1726901441463,-1000.0,0.00012998,2]
[338730229,1726901441474,-1000.0,0.00012998,2]
[338730231,1726901441483,-319.99,0.00012998,2]
[338730233,1726901441492,-500.0,0.00012998,2]
[338730235,1726901441502,-500.0,0.00012998,2]
[338730237,1726901441511,-500.0,0.00012998,2]
[338730239,1726901441520,-522.01,0.00012998,2]
[338730241,1726901441530,-500.0,0.00012998,2]
[338730243,1726901441539,-500.0,0.00012998,2]
[338730245,1726901441547,-500.0,0.00012998,2]
[338730247,1726901441556,-500.0,0.00012998,2]
[338730249,1726901441566,-404.68,0.00012998,2]
[338730251,1726901441575,-500.0,0.00012998,2]
[338730253,1726901441584,-500.0,0.00012998,2]
[338730255,1726901441593,-500.0,0.00012998,2]
[338730257,1726901441602,-500.0,0.00012998,2]
[338730259,1726901441611,-639.54,0.00012998,2]
[338730261,1726901441620,-500.0,0.00012998,2]
[338730263,1726901441629,-295.06,0.00012998,2]
[338730265,1726901441639,-500.0,0.00012998,2]
[338730266,1726901441648,-499.59,0.00012998,2]
[338730268,1726901441657,-500.0,0.00012998,2]
[338730271,1726901441668,-500.0,0.00012998,2]
[338730273,1726901441678,-500.0,0.00012998,2]
[338730275,1726901441687,-500.0,0.00012998,2]
[338730277,1726901441697,-500.0,0.00012998,2]
[338730279,1726901441708,-576.77,0.00012998,2]
[338730281,1726901441718,-500.0,0.00012998,2]
[338730283,1726901441729,-347.86,0.00012998,2]
[338730285,1726901441738,-191.08,0.00012998,2]
[338730287,1726901441748,-500.0,0.00012998,2]
[338730289,1726901441758,-500.0,0.00012998,2]
[338730291,1726901441767,-500.0,0.00012998,2]
[338730293,1726901441776,-500.0,0.00012998,2]
[338730295,1726901441786,-276.91,0.00012998,2]
[338730297,1726901441795,-500.0,0.00012998,2]
[338730299,1726901441804,-500.0,0.00012998,2]
[338730301,1726901441814,-500.0,0.00012998,2]
[338730303,1726901441823,-418.69,0.00012998,2]
[338730305,1726901441832,-487.82,0.00012998,2]
[338730307,1726901441841,-500.0,0.00012998,2]
[338730309,1726901441850,-500.0,0.00012998,2]
[338730311,1726901441859,-305.24,0.00012998,2]
[338730313,1726901441869,-428.28380106,0.00012998,2]
[338730315,1726901441878,-500.0,0.00012998,2]
[338730317,1726901441887,-265.95,0.00012998,2]
[338730319,1726901441896,-163.93,0.00012998,2]
[338730321,1726901441906,-500.0,0.00012998,2]
[338730323,1726901441915,-557.22,0.00012998,2]
[338730325,1726901441924,-500.0,0.00012998,2]
[338730327,1726901441934,-500.0,0.00012998,2]
[338730329,1726901441943,-500.0,0.00012998,2]
[338730331,1726901441952,-500.0,0.00012998,2]
[338730333,1726901441962,-540.95,0.00012998,2]
[338730335,1726901441971,-500.0,0.00012998,2]
[338730337,1726901441980,-339.45,0.00012998,2]
[338730339,1726901441990,-500.0,0.00012998,2]
[338730341,1726901441999,-553.90212029,0.00012998,2]
[338730343,1726901442008,-159.11,0.00012998,2]
[338730344,1726901442017,-500.0,0.00012998,2]
[338730346,1726901442027,-363.96,0.00012998,2]
[338730348,1726901442036,-500.0,0.00012998,2]
[338730350,1726901442045,-500.0,0.00012998,2]
[338730352,1726901442055,-500.0,0.00012998,2]
[338730354,1726901442064,-500.0,0.00012998,2]
[338730356,1726901442074,-444.15,0.00012998,2]
[338730358,1726901442083,-375.47,0.00012998,2]
[338730360,1726901442093,-500.0,0.00012998,2]
[338730362,1726901442103,-321.06,0.00012998,2]
[338730364,1726901442114,-500.0,0.00012998,2]
[338730366,1726901442125,-500.0,0.00012998,2]
[338730368,1726901442136,-500.0,0.00012998,2]
[338730371,1726901442147,-362.99,0.00012998,2]
[338730373,1726901442158,-493.67,0.00012998,2]
[338730375,1726901442168,-173.72,0.00012998,2]
[338730377,1726901442179,-275.04,0.00012998,2]
[338730379,1726901442189,-575.6,0.00012998,2]
[338730381,1726901442199,-500.0,0.00012998,2]
[338730383,1726901442208,-162.64,0.00012998,2]
[338730385,1726901442218,-417.78,0.00012998,2]
[338730387,1726901442228,-269.39,0.00012998,2]
[338730389,1726901442238,-455.47,0.00012998,2]
[338730391,1726901442248,-500.0,0.00012998,2]
[338730393,1726901442258,-500.0,0.00012998,2]
[338730396,1726901442269,-227.84,0.00012998,2]
[338730397,1726901442279,-500.0,0.00012998,2]
[338730401,1726901442290,-500.0,0.00012998,2]
[338730403,1726901442300,-500.0,0.00012998,2]
[338730405,1726901442310,-228.77,0.00012998,2]
[338730407,1726901442320,-293.22,0.00012998,2]
[338730409,1726901442329,-168.18,0.00012998,2]
[338730411,1726901442340,-518.26,0.00012998,2]
[338730413,1726901442349,-222.03,0.00012998,2]
[338730415,1726901442359,-500.0,0.00012998,2]
[338730417,1726901442368,-493.35,0.00012998,2]
[338730419,1726901442378,-491.18,0.00012998,2]
[338730421,1726901442387,-292.17,0.00012998,2]
[338730423,1726901442397,-268.8973379,0.00012998,2]
[338730425,1726901442411,-231.1026621,0.00012998,2]
[338730427,1726901442421,-339.45733785,0.00012998,2]
[338730429,1726901442433,-180.73266215,0.00012998,2]
[338730431,1726901442442,-500.0,0.00012998,2]
[338730433,1726901442452,-59.61460664,0.00012998,2]
[338730435,1726901442466,-440.38539336,0.00012998,2]
[338730438,1726901442478,-262.81996821,0.00012998,2]
[338730440,1726901442492,-237.18003179,0.00012998,2]
[338730442,1726901442502,-332.65,0.00012998,2]
[338730445,1726901442513,-166.43,0.00012998,2]
[338730448,1726901442523,-500.0,0.00012998,2]
[338730451,1726901442532,-249.33,0.00012998,2]
[338730455,1726901442542,-510.82,0.00012998,2]
[338730457,1726901442553,-500.0,0.00012998,2]
[338730459,1726901442564,-500.0,0.00012998,2]
[338730461,1726901442573,-151.75,0.00012998,2]
[338730463,1726901442583,-502.71,0.00012998,2]
[338730465,1726901442592,-500.0,0.00012998,2]
[338730467,1726901442602,-500.0,0.00012998,2]
[338730469,1726901442612,-500.0,0.00012998,2]
[338730471,1726901442622,-500.0,0.00012998,2]
[338730473,1726901442632,-500.0,0.00012998,2]
[338730475,1726901442643,-500.0,0.00012998,2]
[338730477,1726901442654,-500.0,0.00012998,2]
[338730480,1726901442666,-532.99,0.00012998,2]
[338730482,1726901442677,-213.37,0.00012998,2]
[338730484,1726901442688,-500.0,0.00012998,2]
[338730486,1726901442699,-500.0,0.00012998,2]
[338730488,1726901442709,-194.91,0.00012998,2]
[338730490,1726901442719,-500.0,0.00012998,2]
[338730492,1726901442728,-160.75,0.00012998,2]
[338730494,1726901442739,-573.89,0.00012998,2]
[338730496,1726901442750,-500.0,0.00012998,2]
[338730498,1726901442760,-500.0,0.00012998,2]
[338730500,1726901442769,-500.0,0.00012998,2]
[338730502,1726901442780,-500.0,0.00012998,2]
[338730504,1726901442791,-185.09,0.00012998,2]
[338730505,1726901442802,-152.45,0.00012998,2]
[338730506,1726901442812,-500.0,0.00012998,2]
[338730507,1726901442822,-263.4,0.00012998,2]
[338730508,1726901442832,-287.06,0.00012998,2]
[338730509,1726901442841,-291.34,0.00012998,2]
[338730510,1726901442851,-500.0,0.00012998,2]
[338730511,1726901442860,-250.03,0.00012998,2]
[338730512,1726901442870,-500.0,0.00012998,2]
[338730513,1726901442880,-500.0,0.00012998,2]
[338730514,1726901442890,-500.0,0.00012998,2]
[338730515,1726901442899,-500.0,0.00012998,2]
[338730516,1726901442910,-500.0,0.00012998,2]
[338730517,1726901442920,-261.58,0.00012998,2]
[338730518,1726901442929,-610.62,0.00012998,2]
[338730519,1726901442939,-309.13,0.00012998,2]
[338730520,1726901442949,-389.51,0.00012998,2]
[338730521,1726901442958,-500.0,0.00012998,2]
[338730522,1726901442968,-488.34,0.00012998,2]
[338730523,1726901442977,-500.0,0.00012998,2]
[338730524,1726901442987,-500.0,0.00012998,2]
[338730525,1726901442996,-500.0,0.00012998,2]
[338730526,1726901443007,-423.5,0.00012998,2]
[338730527,1726901443018,-169.18,0.00012998,2]
[338730528,1726901443029,-500.0,0.00012998,2]
[338730529,1726901443039,-500.0,0.00012998,2]
[338730530,1726901443050,-165.1,0.00012998,2]
[338730531,1726901443061,-500.0,0.00012998,2]
[338730532,1726901443073,-500.0,0.00012998,2]
[338730533,1726901443087,-500.0,0.00012998,2]
[338730534,1726901443098,-500.0,0.00012998,2]
[338730535,1726901443109,-500.0,0.00012998,2]
[338730536,1726901443120,-430.14,0.00012998,2]
[338730537,1726901443131,-258.04,0.00012998,2]
[338730538,1726901443142,-281.26,0.00012998,2]
[338730539,1726901443152,-413.11,0.00012998,2]
[338730540,1726901443163,-500.0,0.00012998,2]
[338730541,1726901443173,-500.0,0.00012998,2]
[338730542,1726901443183,-500.0,0.00012998,2]
[338730543,1726901443194,-500.0,0.00012998,2]
[338730544,1726901443205,-273.81,0.00012998,2]
[338730545,1726901443216,-500.0,0.00012998,2]
[338730546,1726901443226,-500.0,0.00012998,2]
[338730547,1726901443238,-476.6,0.00012998,2]
[338730548,1726901443248,-500.0,0.00012998,2]
[338730549,1726901443259,-492.43,0.00012998,2]
[338730550,1726901443268,-500.0,0.00012998,2]
[338730551,1726901443279,-500.0,0.00012998,2]
[338730552,1726901443290,-48.46647569,0.00012999,2]
[338730553,1726901443304,-1334.37466889,0.00012999,2]
[338730554,1726901443313,-166.01615957,0.00012999,2]
[338730555,1726901443325,-1473.28012835,0.00012999,2]
[338730556,1726901443335,-551.3,0.00012999,2]
[338730557,1726901443345,-500.0,0.00012999,2]
[338730558,1726901443354,-500.0,0.00012999,2]
[338730559,1726901443363,-500.0,0.00012999,2]
[338730560,1726901443373,-500.0,0.00012999,2]
[338730561,1726901443382,-500.0,0.00012999,2]
[338730562,1726901443392,-431.5,0.00012999,2]
[338730563,1726901443402,-500.0,0.00012999,2]
[338730564,1726901443411,-500.0,0.00012999,2]
[338730565,1726901443421,-375.12,0.00012999,2]
[338730566,1726901443432,-500.0,0.00012999,2]
[338730567,1726901443443,-500.0,0.00012999,2]
[338730568,1726901443454,-500.0,0.00012999,2]
[338730569,1726901443465,-500.0,0.00012999,2]
[338730570,1726901443476,-520.12,0.00012999,2]
[338730571,1726901443490,-500.0,0.00012999,2]
[338730572,1726901443501,-500.0,0.00012999,2]
[338730573,1726901443511,-500.0,0.00012999,2]
[338730574,1726901443520,-500.0,0.00012999,2]
[338730575,1726901443531,-500.0,0.00012999,2]
[338730576,1726901443542,-500.0,0.00012999,2]
[338730577,1726901443553,-500.0,0.00012999,2]
[338730578,1726901443563,-500.0,0.00012999,2]
[338730579,1726901443575,-259.62,0.00012999,2]
[338730580,1726901443587,-581.28,0.00012999,2]
[338730581,1726901443598,-500.0,0.00012999,2]
[338730582,1726901443610,-500.0,0.00012999,2]
[338730583,1726901443621,-500.0,0.00012999,2]
[338730584,1726901443632,-500.0,0.00012999,2]
[338730585,1726901443644,-500.0,0.00012999,2]
[338730586,1726901443656,-205.06,0.00012999,2]
[338730587,1726901443667,-500.0,0.00012999,2]
[338730588,1726901443679,-486.6,0.00012999,2]
[338730589,1726901443691,-500.0,0.00012999,2]
[338730590,1726901443702,-500.0,0.00012999,2]